fUST/lending_fUST_20240620
["ID","MTS","AMOUNT","RATE_DAILY","PERIOD"]
[329932288,1718843438809,-500.0,0.00026619,2]
[329932290,1718843438819,-500.0,0.00026619,2]
[329932292,1718843438828,-500.0,0.00026619,2]
[329932294,1718843438838,-217.94215605,0.00026619,2]
[329932296,1718843438848,-500.0,0.00026619,2]
[329932298,1718843438857,-500.0,0.00026619,2]
[329932300,1718843438867,-3000.0,0.0002662,2]
[329932302,1718843438876,-3000.0,0.0002663,2]
[329932304,1718843438886,-3000.0,0.0002664,2]
[329932306,1718843438896,-3000.0,0.0002665,2]
[329932308,1718843438905,-3000.0,0.0002666,2]
[329932310,1718843438915,-3000.0,0.0002667,2]
[329932312,1718843438926,-3000.0,0.0002668,2]
[329932314,1718843438935,-3000.0,0.0002669,2]
[329932316,1718843438944,-3000.0,0.000267,2]
[329932318,1718843438953,-3000.0,0.0002671,2]
[329932320,1718843438963,-3000.0,0.0002672,2]
[329932322,1718843438972,-3000.0,0.0002673,2]
[329932324,1718843438980,-5492.03271,0.0002674,2]
[329932326,1718843438990,-164.986505,0.00027195,2]
[329932328,1718843438999,-166.7,0.00027786,15]
[329932330,1718843439009,-267.87185097,0.00028,2]
[329932332,1718843439018,-20156.5710461,0.00028,5]
[329932334,1718843439032,-9119.25919062,0.00028,5]
[329932336,1718843439044,-1544.13388645,0.00028,5]
[329932504,1718843440787,-1180.03587683,0.00028,5]
[329932505,1718843440797,-1751.0,0.00028357,2]
[329932506,1718843440806,-301.664948,0.00028788,2]
[329932507,1718843440816,-164.573693,0.00028788,2]
[329932508,1718843440826,-185.101809,0.00028788,2]
[329932509,1718843440835,-229.476798,0.00028788,2]
[329932510,1718843440845,-169.551812,0.00028788,2]
[329932511,1718843440854,-783.13124269,0.00028995,2]
[329932512,1718843440864,-157.62547626,0.00028997,2]
[329932513,1718843440874,-397.69885747,0.00028998,2]
[329932514,1718843440883,-279.25301167,0.00028998,2]
[329932515,1718843440893,-8979.8120828,0.00028999,2]
[329932516,1718843440902,-12151.25781975,0.00029,30]
[329932517,1718843440911,-301.664948,0.00029148,2]
[329932518,1718843440921,-164.573693,0.00029148,2]
[329932519,1718843440931,-229.476798,0.00029148,2]
[329932520,1718843440941,-154.81422293,0.000292,2]
[329932521,1718843440950,-185.101809,0.00029267,2]
[329932523,1718843440959,-166.7,0.00029313,15]
[329932525,1718843440969,-301.664948,0.00029507,2]
[329932527,1718843440979,-164.573693,0.00029507,2]
[329932529,1718843440989,-229.476798,0.00029507,2]
[329932531,1718843440998,-185.101809,0.00029747,2]
[329932533,1718843441008,-301.664948,0.00029867,2]
[329932535,1718843441018,-164.573693,0.00029867,2]
[329932536,1718843441027,-229.476798,0.00029867,2]
[329932538,1718843441037,-154.81422293,0.0003,4]
[329932540,1718843441046,-469.99127,0.0003,4]
[329932542,1718843441055,-350.15127391,0.0003,30]
[329932544,1718843441064,-185.101809,0.00030227,2]
[329932546,1718843441073,-301.664948,0.00030227,2]
[329932548,1718843441082,-164.573693,0.00030227,2]
[329932550,1718843441092,-229.476798,0.00030227,2]
[329932552,1718843441102,-166.7,0.0003084,15]
[329932554,1718843441111,-1749.0,0.00031357,2]
[329932556,1718843441120,-166.7,0.00032366,15]
[329932558,1718843441129,-164.986505,0.00033295,2]
[329932560,1718843441138,-593.0,0.000335,2]
[329932562,1718843441148,-166.7,0.00033893,15]
[329932564,1718843441157,-154.93802479,0.00034,7]
[329932566,1718843441166,-3862.60164213,0.00035,4]
[329932568,1718843441179,-215.84394824,0.00035,4]
[329932570,1718843441188,-4727.20686808,0.00035,4]
[329932572,1718843441198,-166.7,0.0003542,15]
[329932574,1718843441207,-151.0,0.0003542,15]
[329932576,1718843441216,-452.07413833,0.00035616,7]
[329932578,1718843441225,-213.00150935,0.0003589,2]
[329932580,1718843441234,-166.7,0.00036947,15]
[329932582,1718843441243,-151.0,0.00036947,15]
[329932584,1718843441253,-1547.18192631,0.00038,120]
[329932586,1718843441262,-166.7,0.00038473,15]
[329932588,1718843441271,-151.0,0.00038473,15]
[329932590,1718843441280,-164.986505,0.00039394,2]
[329932592,1718843441289,-231.71688648,0.00039734,4]
[329932594,1718843441299,-47756.85165096,0.000399,5]
[329932596,1718843441308,-2000.0,0.000399,2]
[329932598,1718843441318,-22412.22582181,0.0004,120]
[329932808,1718843443344,-262.11293632,0.00026619,2]
[329932809,1718843443355,-138576.12051884,0.0004,120]
[329932810,1718843443365,-864.57,0.0004,120]
[329932811,1718843443376,-155.15133989,0.0004,4]
[329932812,1718843443386,-5626.7482026,0.0004,30]
[329932813,1718843443398,-312.92341167,0.0004,120]
[329932814,1718843443408,-1011.04577568,0.0004,2]
[329932815,1718843443419,-521.03212677,0.0004,4]
[329932816,1718843443432,-251.0,0.0004,15]
[329932817,1718843443443,-503.0,0.0004,15]
[329932818,1718843443455,-503.0,0.0004,15]
[329932819,1718843443465,-503.0,0.0004,15]
[329932821,1718843443475,-151.0,0.0004,2]
[329932823,1718843443485,-160.0,0.0004,21]
[329932825,1718843443495,-517.0,0.0004,5]
[329932828,1718843443505,-151.0,0.0004,2]
[329932831,1718843443514,-151.0,0.0004,2]
[329932834,1718843443524,-500.0,0.0004,5]
[329932837,1718843443533,-166.7,0.0004,15]
[329932840,1718843443543,-151.0,0.0004,15]
[329932842,1718843443552,-29177.65182761,0.0004007,2]
[329932845,1718843443562,-309.7,0.00041041,31]
[329932847,1718843443571,-152.0,0.00041041,31]
[329932849,1718843443580,-517.0,0.00042,30]
[329932851,1718843443590,-1954.24378375,0.000423,60]
[329932853,1718843443599,-151.0,0.00042499,7]
[329932855,1718843443608,-151.0,0.00042499,7]
[329932857,1718843443617,-1962.91636673,0.000425,30]
[329932859,1718843443626,-277917.34094526,0.000425,30]
[329933990,1718844397167,-154.81680937,0.00019798,2]
[329933991,1718844556162,-150.0,0.000189,2]
[329933992,1718844556184,-154.81552663,0.00019799,2]
[329933993,1718844556206,-162.954333,0.00021096,2]
[329933994,1718844556228,-1980.5996574,0.00021999,2]
[329933995,1718844556250,-10000.0,0.00022,2]
[329933996,1718844556272,-547.72081571,0.00025084,2]
[329933997,1718844556294,-7573.93693339,0.00025085,2]
[329934016,1718844632706,-1100.333143,0.00025084,2]
[329934018,1718844632715,-37.78056158,0.00025085,2]
[329934048,1718844638939,-419.74667966,0.00025085,2]
[329934049,1718844638948,-1925.84485069,0.00025085,2]
[329934050,1718844638961,-7498.88607862,0.00025085,2]
[329934051,1718844638970,-218.19167645,0.00025534,2]
[329934072,1718844640986,-630.71044645,0.00025534,2]
[329934073,1718844640996,-2793.72724364,0.000264,2]
[329934074,1718844641008,-5182.635074,0.000264,2]
[329934075,1718844641021,-150.0,0.000265,2]
[329934076,1718844641036,-174.86877295,0.000274,2]
[329934077,1718844641046,-162.954333,0.00027913,2]
[329934078,1718844641056,-267.87185097,0.00028,2]
[329934079,1718844641067,-783.13124269,0.00028995,2]
[329934080,1718844641078,-444.51306298,0.00028998,2]
[329934081,1718844641087,-243.45616907,0.00028998,2]
[329934082,1718844641098,-20000.0,0.00028998,2]
[329934083,1718844641107,-292.70877686,0.00028999,2]
[329934084,1718844641120,-1116.27702655,0.00028999,2]
[329934085,1718844641129,-500.0,0.00028999,2]
[329934086,1718844641139,-327.29116925,0.00028999,2]
[329934087,1718844641148,-79.24343186,0.00028999,2]
[329934088,1718844641161,-420.75656814,0.00028999,2]
[329934089,1718844641170,-386.84177058,0.00028999,2]
[329934110,1718844643824,-113.15822942,0.00028999,2]
[329934112,1718844643834,-500.0,0.00028999,2]
[329934114,1718844643843,-500.0,0.00028999,2]
[329934116,1718844643853,-435.06341177,0.00028999,2]
[329934117,1718844643862,-500.0,0.00028999,2]
[329934119,1718844643872,-500.0,0.00028999,2]
[329934121,1718844643881,-315.38264682,0.00028999,2]
[329934123,1718844643891,-500.0,0.00028999,2]
[329934125,1718844643900,-500.0,0.00028999,2]
[329934127,1718844643910,-11824.99128143,0.00029,30]
[329934129,1718844643919,-154.81422293,0.000292,2]
[329934131,1718844643928,-1751.0,0.00029648,2]
[329934133,1718844643938,-469.99127,0.0003,4]
[329934135,1718844643947,-154.81422293,0.0003,4]
[329934137,1718844643957,-794.881,0.00032648,2]
[329934138,1718844643966,-162.954333,0.0003473,2]
[329934139,1718844643976,-215.84394824,0.00035,4]
[329934140,1718844643986,-2703.82114949,0.00035,4]
[329934141,1718844643995,-4727.20686808,0.00035,4]
[329934142,1718844644004,-4165.69320212,0.00035,4]
[329934143,1718844644013,-593.0,0.000368,2]
[329934145,1718844644023,-1547.18192631,0.00038,120]
[329934147,1718844644038,-312.92341167,0.0004,120]
[329934149,1718844644048,-1011.04577568,0.0004,2]
[329934150,1718844644057,-154.81422293,0.0004,4]
[329934151,1718844644068,-150.0,0.00040067,4]
[329934152,1718844644078,-162.954333,0.00041547,2]
[329934153,1718844644088,-439.60146747,0.00041775,6]
[329934154,1718844644098,-251.0,0.000424,18]
[329934155,1718844644108,-503.0,0.000424,18]
[329934156,1718844644118,-503.0,0.000424,18]
[329934157,1718844644127,-503.0,0.000424,18]
[329934158,1718844644136,-157.77,0.000424,26]
[329934159,1718844644146,-341.84575134,0.00042499,30]
[329934160,1718844644155,-247.62,0.00042499,7]
[329934161,1718844644165,-247.62,0.00042499,7]
[329934162,1718844644176,-137353.83991183,0.000425,30]
[329934163,1718844644185,-29901.89241435,0.000425,30]
[329934164,1718844644194,-1962.91636673,0.000425,30]
[329934165,1718844644203,-2752.1946913,0.000425,120]
[329934166,1718844644212,-521.03212677,0.000425,4]
[329934167,1718844644221,-150.80395486,0.00043709,2]
[329934168,1718844644232,-300.0,0.00044,120]
[329934169,1718844644242,-301.60790972,0.00044444,4]
[329934170,1718844644252,-1577.58908213,0.00045,120]
[329934171,1718844644262,-30021.11560541,0.00045,120]
[329934172,1718844644274,-1000.0,0.00045,45]
[329934173,1718844644282,-3350.664,0.00045,60]
[329934174,1718844644291,-2000.0,0.00045543,2]
[329934175,1718844644300,-999.0,0.00045643,45]
[329934176,1718844644310,-999.0,0.00045643,45]
[329934177,1718844644320,-999.0,0.00045643,45]
[329934178,1718844644332,-999.0,0.00045643,45]
[329934179,1718844644342,-999.0,0.00045643,45]
[329934180,1718844644351,-999.0,0.00045643,45]
[329934181,1718844644361,-999.0,0.00045643,45]
[329934182,1718844644371,-999.0,0.00045643,45]
[329934183,1718844644380,-999.0,0.00045643,45]
[329934184,1718844644391,-999.0,0.00045643,45]
[329934185,1718844644401,-999.0,0.00045643,45]
[329934186,1718844644411,-999.0,0.00045643,45]
[329934187,1718844644421,-999.0,0.00045643,45]
[329934188,1718844644430,-999.0,0.00045643,45]
[329934189,1718844644440,-999.0,0.00045643,45]
[329934190,1718844644449,-999.0,0.00045643,45]
[329934191,1718844644459,-999.0,0.00045643,45]
[329934192,1718844644470,-999.0,0.00045643,45]
[329934193,1718844644478,-999.0,0.00045643,45]
[329934194,1718844644487,-1019.0,0.00045643,45]
[329934195,1718844644497,-162.954333,0.00048364,2]
[329934196,1718844644506,-6734.0,0.00049,120]
[329934197,1718844644517,-255.97056786,0.00049,120]
[329934198,1718844644526,-1281.92649413,0.00049,120]
[329934199,1718844644537,-151.0,0.00049151,8]
[329934200,1718844644546,-309.7,0.00049278,60]
[329934201,1718844644555,-152.0,0.00049278,60]
[329934202,1718844644565,-300.21053205,0.00049315,31]
[329934203,1718844644573,-200.0,0.00049371,120]
[329934204,1718844644583,-1000.0,0.000499,68]
[329934205,1718844644592,-1000.0,0.000499,68]
[329934206,1718844644603,-154.81422293,0.0005,30]
[329934207,1718844644612,-2936.981366,0.0005,120]
[329934208,1718844644623,-1998.29446918,0.0005,120]
[329934209,1718844644633,-500.0,0.0005,28]
[329934210,1718844644643,-2016.8005239,0.0005,4]
[329934211,1718844644652,-276.8910083,0.0005,120]
[329934212,1718844644678,-23.1089917,0.0005,120]
[329934213,1718844644689,-301.4619265,0.0005,120]
[329934232,1718844662798,6.91036828,0.00034,120]
[329934235,1718845050168,154.79876161,9.999e-05,2]
[329934243,1718845393464,218.3386773,9.999e-05,2]
[329934244,1718845393494,340.04073166,9.999e-05,2]
[329934245,1718845393524,358.78670309,9.999e-05,2]
[329934246,1718845393553,411.303388,9.999e-05,2]
[329934247,1718845393587,768.42902545,9.999e-05,2]
[329934248,1718845413409,2097.38249461,9.999e-05,2]
[329934249,1718845429415,2095.33566468,9.999e-05,2]
[329934250,1718845436015,3617.69416732,9.999e-05,2]
[329934251,1718845445424,1738.67692955,9.999e-05,2]
[329934252,1718845454005,3617.69416732,9.999e-05,2]
[329934253,1718845471928,3617.69416732,9.999e-05,2]
[329934254,1718845493932,3617.69416732,9.999e-05,2]
[329934255,1718845502474,16202.73929354,9.999e-05,2]
[329934256,1718845504500,1100.333143,9.999e-05,2]
[329934257,1718845517943,3618.55494813,9.999e-05,2]
[329934258,1718845522408,16202.73929354,9.999e-05,2]
[329934259,1718845535935,3616.83338651,9.999e-05,2]
[329934260,1718845538441,15199.7668945,9.999e-05,2]
[329934261,1718845551942,3617.69416732,9.999e-05,2]
[329934262,1718845559265,-1456.8494895,0.00020996,2]
[329934263,1718845559290,-573.2735675,0.00021092,2]
[329934264,1718845559317,-289.58657313,0.00021092,2]
[329934265,1718845559342,-154.98450155,0.00021093,2]
[329934266,1718845559366,-22525.30586832,0.00021094,2]
[329934267,1718845560796,-15976.55461928,0.00021094,2]
[329934268,1718845560822,-225.7665658,0.00021096,2]
[329934269,1718845560852,-154.81422293,0.00023,2]
[329934270,1718845560876,-154.92253873,0.00025081,2]
[329934271,1718845560901,-154.81422293,0.00025081,2]
[329934272,1718845560924,-154.81422293,0.00025081,2]
[329934273,1718845560950,-450.0,0.00025081,2]
[329934274,1718845560974,-292.70877686,0.00025082,2]
[329934275,1718845560999,-354.52534069,0.00025082,2]
[329934276,1718845561022,-7081.07948985,0.00025082,2]
[329934277,1718845562283,-23933.89175297,0.00025082,2]
[329934278,1718845562312,-492.223186,0.000265,2]
[329934279,1718845562337,-174.86877295,0.000274,2]
[329934280,1718845562366,-287.90129371,0.000275,30]
[329934281,1718845562391,-111.11499437,0.00028,2]
[329934282,1718845563685,-295.06305217,0.00028,2]
[329934283,1718845563710,-1750.0,0.00028909,2]
[329934284,1718845563735,-783.13124269,0.00028995,2]
[329934285,1718845563760,-154.81422293,0.000292,2]
[329934286,1718845563785,-469.99127,0.0003,4]
[329934287,1718845563810,-275.32115961,0.0003,4]
[329934288,1718845563835,-163.2715501,0.00030093,2]
[329934289,1718845563863,-191.244404,0.00030468,2]
[329934290,1718845563888,-1299.9520317,0.000307,2]
[329934291,1718845563912,-614.71990186,0.00034,4]
[329934292,1718845564047,-364.72248874,0.00034,4]
[329934293,1718845564072,-154.81422293,0.00034,30]
[329934294,1718845564101,-430.51902353,0.00034999,7]
[329934295,1718845564127,-500.0,0.00034999,7]
[329934296,1718845564152,-644.61479404,0.00034999,7]
[329934297,1718845564177,-4727.20686808,0.00035,4]
[329934298,1718845564202,-154.81422293,0.00035,4]
[329934299,1718845564226,-2703.82114949,0.00035,4]
[329934300,1718845564249,-1547.18192631,0.00038,120]
[329934301,1718845564272,-154.81422293,0.0004,4]
[329934302,1718845564300,-808.83662055,0.0004,2]
[329934303,1718845564325,-178.86885333,0.0004,120]
[329934304,1718845564352,-2824.0,0.0004,120]
[329934305,1718845569930,258.24743035,9.999e-05,2]
[329934306,1718845575938,267.87185097,0.00028,2]
[329934307,1718845579952,364.72248874,0.00032,4]
[329934308,1718845581365,457.52724124,0.00025,2]
[329934309,1718845595860,364.72248874,0.00032,4]
[329934310,1718845599314,416.25319071,0.00025,2]
[329934311,1718845611858,364.72248874,0.00032,4]
[329934312,1718845614061,1314.20959259,0.00038,120]
[329934313,1718845627126,-232.97233372,0.00038,120]
[329934314,1718845627149,-150.78889555,0.00042836,2]
[329934315,1718845627169,-1385.55875656,0.00043155,30]
[329934316,1718845747118,-167.44092,0.00021096,2]
[329934331,1718845831968,-167.44092,0.00030011,2]
[329934333,1718845831978,-1547.18192631,0.00038,120]
[329934335,1718845831988,-167.44092,0.00038925,2]
[329934337,1718845831997,-880.2665144,0.00043151,4]
[329934339,1718845832007,-154.79876161,0.00043152,10]
[329934341,1718845832017,-3090.0813137,0.00043152,4]
[329934343,1718845832026,-5402.52213495,0.00043152,4]
[329934345,1718845832035,-808.83662055,0.00043153,2]
[329934347,1718845832044,-1962.91636673,0.00043153,30]
[329934349,1718845832054,-469.99127,0.00043154,4]
[329934351,1718845832063,-416.82570142,0.00043155,4]
[329934353,1718845832072,-309.7,0.00043157,31]
[329934355,1718845832082,-152.0,0.00043157,31]
[329934357,1718845832095,-309.7,0.00043585,31]
[329934359,1718845832104,-152.0,0.00043585,31]
[329934361,1718845832113,-1202.50478724,0.0004783,4]
[329934363,1718845832123,-172.6751586,0.00047833,4]
[329934365,1718845832132,-167.44092,0.0004784,2]
[329934367,1718845832142,-150.80395486,0.00049094,2]
[329934370,1718845832159,-255.12007563,0.00049826,9]
[329934372,1718845832172,-186.61775245,0.00049996,4]
[329934374,1718845832182,-698.5380735,0.0005,120]
[329934375,1718845832193,-154.81422293,0.0005,30]
[329934376,1718845832202,-8463.0240943,0.0005,4]
[329934377,1718845832213,-151.0,0.0005,41]
[329934379,1718845832223,-251.0,0.0005,27]
[329934381,1718845832233,-503.0,0.0005,27]
[329934382,1718845832242,-503.0,0.0005,27]
[329934384,1718845832252,-503.0,0.0005,27]
[329934386,1718845832262,-1274.74330333,0.0005092,28]
[329934388,1718845832271,-3000.0,0.00051,85]
[329934389,1718845832281,-3000.0,0.0005101,85]
[329934390,1718845832290,-3000.0,0.0005102,85]
[329934392,1718845832300,-3000.0,0.0005103,85]
[329934394,1718845832310,-3000.0,0.0005104,85]
[329934396,1718845832320,-3000.0,0.0005105,85]
[329934397,1718845832329,-3000.0,0.0005106,85]
[329934398,1718845832341,-3000.0,0.0005107,85]
[329934399,1718845832351,-490.54919745,0.00051078,120]
[329934400,1718845832360,-184.50815294,0.00051078,120]
[329934401,1718845832370,-4783.989544,0.0005108,85]
[329934402,1718845832379,-1323.0,0.00051947,62]
[329934403,1718845832393,-1000.0,0.000525,2]
[329934404,1718845832403,-170.38386991,0.00052898,2]
[329934405,1718845832413,-11594.42125314,0.00052998,2]
[329934406,1718845832428,-2192.38936963,0.00052998,2]
[329934407,1718845832451,-3479.02003693,0.00052998,2]
[329934408,1718845832462,-4165.69320212,0.00052998,4]
[329934409,1718845832472,-519.0,0.000537,32]
[329934410,1718845832482,-2000.0,0.000547,33]
[329934411,1718845832492,-517.0,0.000547,33]
[329934412,1718845832501,-251.0,0.000547,33]
[329934413,1718845832511,-6611.46922767,0.00054794,4]
[329934452,1718845837946,-1772.21075813,0.00054794,4]
[329934454,1718845837959,-1022.13,0.00054794,120]
[329934456,1718845837972,-502.36211925,0.00054794,120]
[329934458,1718845837985,-500.0,0.00054794,120]
[329934459,1718845837997,-245.62621696,0.00054794,120]
[329934460,1718845838007,-500.0,0.00054794,120]
[329934461,1718845838018,-500.0,0.00054794,120]
[329934462,1718845838029,-500.0,0.00054794,120]
[329934463,1718845838041,-500.0,0.00054794,120]
[329934464,1718845838053,-500.0,0.00054794,120]
[329934465,1718845838065,-500.0,0.00054794,120]
[329934466,1718845838076,-500.0,0.00054794,120]
[329934467,1718845838089,-6416.04,0.00054794,120]
[329934468,1718845838100,-500.0,0.00054794,120]
[329934469,1718845838111,-500.0,0.00054794,120]
[329934470,1718845838123,-1003.0,0.00054794,14]
[329934471,1718845838135,-422.62561421,0.00054794,120]
[329934472,1718845838226,-77.37438579,0.00054794,120]
[329934473,1718845838237,-500.0,0.00054794,120]
[329934474,1718845838249,-367.91350064,0.00054794,120]
[329934476,1718845838260,-500.0,0.00054794,120]
[329934478,1718845838273,-151.0,0.00054795,120]
[329934480,1718845838284,-500.0,0.00054795,120]
[329934482,1718845838295,-500.0,0.00054795,120]
[329934485,1718845838306,-500.0,0.00054795,120]
[329934487,1718845838317,-566.96,0.00054795,120]
[329934489,1718845838328,-500.0,0.00054795,120]
[329934491,1718845838341,-500.0,0.00054795,120]
[329934493,1718845838352,-500.0,0.00054795,120]
[329934495,1718845838363,-500.0,0.00054795,120]
[329934498,1718845838373,-500.0,0.00054795,120]
[329934500,1718845838386,-401.0374464,0.00055,28]
[329934503,1718845838417,-98.9625536,0.00055,28]
[329934506,1718845838428,-1998.29446918,0.00055,120]
[329934508,1718845838439,-947.82,0.00055,60]
[329934510,1718845838450,-1000.0,0.00055,55]
[329934512,1718845838461,-151.0,0.00055534,120]
[329934514,1718845838474,-151.0,0.00056274,120]
[329934516,1718845838485,-787.52443157,0.000566,120]
[329934519,1718845838495,-167.44092,0.00056755,2]
[329934521,1718845838507,-187.18794005,0.00056986,120]
[329934706,1718845840309,-312.81205995,0.00056986,120]
[329934707,1718845840321,-500.0,0.00056986,120]
[329934708,1718845840334,-500.0,0.00056986,120]
[329934709,1718845840346,-500.0,0.00056986,120]
[329934710,1718845840357,-1771.58031235,0.00057,120]
[329934711,1718845840368,-5936.19176014,0.00057,60]
[329934712,1718845840380,-151.0,0.00057014,120]
[329934714,1718845840394,-500.0,0.000572,120]
[329934716,1718845840405,-1022.13,0.00057534,120]
[329934718,1718845840415,-6416.04,0.00057534,120]
[329934720,1718845840426,-151.0,0.00057753,120]
[329934722,1718845840436,-842.0,0.00058,60]
[329934724,1718845840447,-5936.0,0.00058,60]
[329934726,1718845840457,-820.0,0.00058,60]
[329934728,1718845840472,-151.0,0.00058493,120]
[329934730,1718845840483,-1003.13619661,0.000587,120]
[329934733,1718845840494,-603.23563751,0.00059054,120]
[329934735,1718845840505,-500.0,0.00059178,120]
[329934737,1718845840516,-500.0,0.00059178,120]
[329934739,1718845840527,-500.0,0.00059178,120]
[329934741,1718845840538,-500.0,0.00059178,120]
[329934743,1718845840548,-151.0,0.00059233,120]
[329934745,1718845840559,-151.0,0.00059973,120]
[329934747,1718845840570,-677.88455289,0.0006,12]
[329934749,1718845840580,-160.0,0.0006,60]
[329934752,1718845840592,-5097.0,0.0006,120]
[329934754,1718845840603,-1000.0,0.0006,120]
[329934756,1718845840613,-500.0,0.0006,28]
[329934758,1718845840624,-500.0,0.0006,120]
[329934760,1718845840634,-1998.29446918,0.0006,120]
[329934762,1718845840645,-154.79876061,0.0006,120]
[329934764,1718845840654,-1022.13,0.00060273,120]
[329934766,1718845840664,-1127.66,0.00060273,120]
[329934768,1718845840675,-6416.04,0.00060273,120]
[329934770,1718845840685,-151.0,0.00060712,120]
[329934772,1718845840695,-150.0,0.00061,120]
[329934774,1718845840705,-500.0,0.00061369,120]
[329934777,1718845840716,-500.0,0.00061369,120]
[329934779,1718845840726,-500.0,0.00061369,120]
[329934781,1718845840736,-500.0,0.00061369,120]
[329934783,1718845840747,-151.0,0.00061452,120]
[329934785,1718845840758,-346.61664575,0.000616,120]
[329934787,1718845840769,-1000.0,0.00061649,30]
[329934789,1718845840779,-1000.0,0.00061649,30]
[329934791,1718845840790,-1000.0,0.00061649,30]
[329934793,1718845840804,-1000.0,0.00061649,30]
[329934795,1718845840814,-151.0,0.00062192,120]
[329934797,1718845840825,-151.0,0.00062932,120]
[329934799,1718845840835,-1022.13,0.00063013,120]
[329934801,1718845840847,-1127.66,0.00063013,120]
[329934803,1718845840858,-6416.04,0.00063013,120]
[329934805,1718845840869,-500.0,0.00063561,120]
[329934807,1718845840879,-406.53829025,0.00063561,120]
[329934809,1718845840892,-500.0,0.00063561,120]
[329934811,1718845840902,-500.0,0.00063561,120]
[329934813,1718845840912,-151.0,0.00063671,120]
[329934815,1718845840923,-500.0,0.00064,120]
[329934818,1718845840933,-8346.74477998,0.000644,120]
[329934820,1718845840943,-151.0,0.00064411,120]
[329934822,1718845840953,-4487.99847648,0.000649,120]
[329934824,1718845840964,-500.0,0.00065,28]
[329934826,1718845840974,-500.0,0.00065,28]
[329934828,1718845840984,-1998.29446918,0.00065,120]
[329934843,1718845841120,-1000.0,0.00065,65]
[329934846,1718845841135,-151.0,0.00065151,120]
[329934848,1718845841146,-167.44092,0.00065669,2]
[329934850,1718845841155,-1022.13,0.00065753,120]
[329934852,1718845841164,-500.0,0.00065753,120]
[329934854,1718845841174,-500.0,0.00065753,120]
[329934856,1718845841183,-1127.66,0.00065753,120]
[329934858,1718845841192,-6416.04,0.00065753,120]
[329934860,1718845841200,-500.0,0.00065753,120]
[329934862,1718845841209,-151.0,0.0006589,120]
[329934864,1718845841219,-658.88,0.00066,90]
[329934866,1718845841228,-151.0,0.0006663,120]
[329934868,1718845841238,-787.06998079,0.000669,120]
[329934871,1718845841247,-151.0,0.00067288,120]
[329934872,1718845841256,-151.0,0.0006737,120]
[329934875,1718845841266,-169.0459099,0.00067671,2]
[329934876,1718845841275,-153.0,0.00067671,2]
[329934878,1718845841285,-153.0,0.00067671,2]
[329934880,1718845841294,-153.0,0.00067671,2]
[329934882,1718845841303,-153.0,0.00067671,2]
[329934884,1718845841312,-153.0,0.00067671,2]
[329934886,1718845841321,-306.0,0.00067671,2]
[329934888,1718845841330,-500.0,0.00067945,120]
[329934890,1718845841339,-500.0,0.00067945,120]
[329934892,1718845841350,-500.0,0.00067945,120]
[329934894,1718845841358,-151.0,0.0006811,120]
[329934896,1718845841368,-1022.13,0.00068493,120]
[329934898,1718845841377,-1127.66,0.00068493,120]
[329934900,1718845841391,-6416.04,0.00068493,120]
[329934902,1718845841400,-151.0,0.00068849,120]
[329934904,1718845841409,-3000.0,0.00069,120]
[329934906,1718845841419,-3000.0,0.0006901,120]
[329934908,1718845841429,-3000.0,0.0006902,120]
[329934910,1718845841439,-3000.0,0.0006903,120]
[329934912,1718845841447,-5270.393726,0.0006904,120]
[329934914,1718845841456,-151.0,0.00069589,120]